[Event "Early Titled Tuesday Blitz | February 8 2022"]
[White "Mamontova, Anastasia"]
[Black "Shkapenko, Pavel"]
[WhiteFideId "34100234"]
[BlackFideId "4151933"]
[WhiteElo "1933"]
[BlackElo "2386"]
[Result "0-1"]
[Round "04"]
[TimeControl "180+1"]
[Date "2022.02.08"]
[WhiteClock "0:00:10"]
[BlackClock "0:00:18"]

1. d4 {[%clk 0:03:00]}  Nf6 {[%clk 0:02:58]} 2. c4 {[%clk 0:03:00]}  e6 {[%clk 0:02:59]} 3. Nc3 {[%clk 0:03:01]}  Bb4 {[%clk 0:02:59]} 4. e3 {[%clk 0:03:01]}  c5 {[%clk 0:03:00]} 5. Ne2 {[%clk 0:03:01]}  cxd4 {[%clk 0:03:00]} 6. exd4 {[%clk 0:03:01]}  O-O {[%clk 0:03:00]} 7. a3 {[%clk 0:03:01]}  Be7 {[%clk 0:03:01]} 8. Nf4 {[%clk 0:03:02]}  d6 {[%clk 0:03:00]} 9. Bd3 {[%clk 0:03:01]}  Nc6 {[%clk 0:03:00]} 10. Bc2 {[%clk 0:02:58]}  e5 {[%clk 0:02:52]} 11. dxe5 {[%clk 0:02:57]}  dxe5 {[%clk 0:02:52]} 12. Nh5 {[%clk 0:02:57]}  Qxd1+ {[%clk 0:02:16]} 13. Bxd1 {[%clk 0:02:58]}  Nxh5 {[%clk 0:02:17]} 14. Bxh5 {[%clk 0:02:58]}  Nd4 {[%clk 0:02:17]} 15. O-O {[%clk 0:02:56]}  Be6 {[%clk 0:02:17]} 16. Nd5 {[%clk 0:02:35]}  Bxd5 {[%clk 0:02:14]} 17. cxd5 {[%clk 0:02:36]}  Rfd8 {[%clk 0:02:14]} 18. Be3 {[%clk 0:02:34]}  Rxd5 {[%clk 0:02:13]} 19. Rac1 {[%clk 0:02:28]}  g6 {[%clk 0:02:01]} 20. Bd1 {[%clk 0:02:21]}  Rad8 {[%clk 0:02:00]} 21. Re1 {[%clk 0:02:19]}  Bf6 {[%clk 0:01:52]} 22. h3 {[%clk 0:02:14]}  h5 {[%clk 0:01:51]} 23. Bxd4 {[%clk 0:02:11]}  Rxd4 {[%clk 0:01:51]} 24. Bb3 {[%clk 0:02:01]}  R8d7 {[%clk 0:01:49]} 25. Re2 {[%clk 0:01:57]}  Kg7 {[%clk 0:01:29]} 26. g3 {[%clk 0:01:52]}  h4 {[%clk 0:01:28]} 27. Kg2 {[%clk 0:01:51]}  hxg3 {[%clk 0:01:28]} 28. Kxg3 {[%clk 0:01:40]}  Bg5 {[%clk 0:01:28]} 29. Rc3 {[%clk 0:01:38]}  Rd3+ {[%clk 0:01:22]} 30. Kg2 {[%clk 0:01:37]}  Rxc3 {[%clk 0:01:22]} 31. bxc3 {[%clk 0:01:36]}  Bf4 {[%clk 0:01:22]} 32. a4 {[%clk 0:01:25]}  Kf6 {[%clk 0:01:18]} 33. Re4 {[%clk 0:01:17]}  Rd2 {[%clk 0:00:59]} 34. Rb4 {[%clk 0:01:11]}  b6 {[%clk 0:00:56]} 35. Rc4 {[%clk 0:01:11]}  Be3 {[%clk 0:00:55]} 36. Rc7 {[%clk 0:01:11]}  Rxf2+ {[%clk 0:00:53]} 37. Kg3 {[%clk 0:01:10]}  Kg7 {[%clk 0:00:52]} 38. Rxa7 {[%clk 0:01:07]}  Rf6 {[%clk 0:00:49]} 39. Re7 {[%clk 0:01:02]}  Bf4+ {[%clk 0:00:47]} 40. Kg2 {[%clk 0:01:00]}  g5 {[%clk 0:00:46]} 41. Bd5 {[%clk 0:00:53]}  Kf8 {[%clk 0:00:45]} 42. Rb7 {[%clk 0:00:52]}  Kg7 {[%clk 0:00:44]} 43. c4 {[%clk 0:00:52]}  Be3 {[%clk 0:00:40]} 44. Re7 {[%clk 0:00:44]}  Bd4 {[%clk 0:00:40]} 45. Kg3 {[%clk 0:00:35]}  Rf4 {[%clk 0:00:40]} 46. Rb7 {[%clk 0:00:21]}  Kg6 {[%clk 0:00:39]} 47. Re7 {[%clk 0:00:20]}  f6 {[%clk 0:00:31]} 48. Bf7+ {[%clk 0:00:20]}  Kh6 {[%clk 0:00:29]} 49. Be6 {[%clk 0:00:20]}  f5 {[%clk 0:00:27]} 50. Rf7 {[%clk 0:00:19]}  Kg6 {[%clk 0:00:27]} 51. Re7 {[%clk 0:00:18]}  Kf6 {[%clk 0:00:27]} 52. Re8 {[%clk 0:00:19]}  e4 {[%clk 0:00:26]} 53. Bd7 {[%clk 0:00:19]}  Rf1 {[%clk 0:00:24]} 54. Rf8+ {[%clk 0:00:18]}  Ke5 {[%clk 0:00:24]} 55. Re8+ {[%clk 0:00:16]}  Kd6 {[%clk 0:00:25]} 56. Bc8 {[%clk 0:00:16]}  Rf3+ {[%clk 0:00:24]} 57. Kg2 {[%clk 0:00:16]}  Rf4 {[%clk 0:00:24]} 58. Rg8 {[%clk 0:00:16]}  Bf6 {[%clk 0:00:19]} 59. Rf8 {[%clk 0:00:16]}  Ke7 {[%clk 0:00:19]} 60. Rg8 {[%clk 0:00:14]}  Kf7 {[%clk 0:00:19]} 61. Be6+ {[%clk 0:00:12]}  Kxe6 {[%clk 0:00:19]} 62. Rb8 {[%clk 0:00:13]}  Bd4 {[%clk 0:00:19]} 63. Re8+ {[%clk 0:00:12]}  Kd7 {[%clk 0:00:18]} 64. Ra8 {[%clk 0:00:12]}  Rf2+ {[%clk 0:00:18]} 65. Kg3 {[%clk 0:00:11]}  Rc2 {[%clk 0:00:18]} 66. Ra7+ {[%clk 0:00:10]}  Kc6 {[%clk 0:00:18]} 67. Rf7 {[%clk 0:00:10]}  Be5# {[%clk 0:00:18]} 0-1


[Site "https://www.chess.com"]

[Event "Early Titled Tuesday Blitz | February 8 2022"]
[White "Manon-og, Ramon Jr."]
[Black "Dejmek, Mark"]
[WhiteFideId "5200776"]
[BlackFideId "2017628"]
[WhiteElo "2348"]
[BlackElo "2192"]
[Result "1-0"]
[Round "04"]
[TimeControl "180+1"]
[Date "2022.02.08"]
[WhiteClock "0:00:26"]
[BlackClock "0:00:07"]

1. e4 {[%clk 0:02:59]}  e5 {[%clk 0:02:59]} 2. Nf3 {[%clk 0:02:59]}  Nc6 {[%clk 0:03:00]} 3. Bc4 {[%clk 0:02:59]}  Bc5 {[%clk 0:02:57]} 4. c3 {[%clk 0:02:59]}  Nf6 {[%clk 0:02:55]} 5. O-O {[%clk 0:02:53]}  Nxe4 {[%clk 0:02:42]} 6. d4 {[%clk 0:02:52]}  d5 {[%clk 0:02:18]} 7. Bb5 {[%clk 0:02:32]}  exd4 {[%clk 0:02:08]} 8. cxd4 {[%clk 0:02:30]}  Be7 {[%clk 0:02:05]} 9. Ne5 {[%clk 0:02:22]}  Bd7 {[%clk 0:01:55]} 10. Nxd7 {[%clk 0:02:22]}  Qxd7 {[%clk 0:01:55]} 11. Nc3 {[%clk 0:02:22]}  O-O {[%clk 0:01:52]} 12. Nxe4 {[%clk 0:02:16]}  dxe4 {[%clk 0:01:46]} 13. d5 {[%clk 0:02:16]}  Rad8 {[%clk 0:01:43]} 14. Be3 {[%clk 0:02:10]}  Qxd5 {[%clk 0:01:42]} 15. Qa4 {[%clk 0:02:01]}  a6 {[%clk 0:01:32]} 16. Bc4 {[%clk 0:01:57]}  Qh5 {[%clk 0:01:10]} 17. Qc2 {[%clk 0:01:51]}  Bd6 {[%clk 0:00:53]} 18. g3 {[%clk 0:01:50]}  Ne5 {[%clk 0:00:47]} 19. Qxe4 {[%clk 0:01:39]}  Rfe8 {[%clk 0:00:34]} 20. Bd5 {[%clk 0:00:55]}  c6 {[%clk 0:00:23]} 21. g4 {[%clk 0:00:47]}  Nxg4 {[%clk 0:00:19]} 22. Bxf7+ {[%clk 0:00:40]}  Kxf7 {[%clk 0:00:14]} 23. Qf3+ {[%clk 0:00:36]}  Kg8 {[%clk 0:00:13]} 24. h3 {[%clk 0:00:36]}  Nxe3 {[%clk 0:00:12]} 25. Qxh5 {[%clk 0:00:35]}  Nxf1 {[%clk 0:00:11]} 26. Rxf1 {[%clk 0:00:34]}  Bf8 {[%clk 0:00:07]} 27. b4 {[%clk 0:00:28]}  Rd5 {[%clk 0:00:07]} 28. Qxe8 {[%clk 0:00:26]} 1-0


[Site "https://www.chess.com"]

[Event "Early Titled Tuesday Blitz | February 8 2022"]
[White "Manukyan, Artyom"]
[Black "Pavlidou, Ekaterini"]
[WhiteFideId "13305786"]
[BlackFideId "4213262"]
[WhiteElo "2034"]
[BlackElo "2127"]
[Result "0-1"]
[Round "04"]
[TimeControl "180+1"]
[Date "2022.02.08"]
[WhiteClock "0:00:05"]
[BlackClock "0:00:50"]

1. e4 {[%clk 0:03:00]}  c5 {[%clk 0:02:59]} 2. Nf3 {[%clk 0:02:59]}  Nc6 {[%clk 0:02:59]} 3. d4 {[%clk 0:02:59]}  cxd4 {[%clk 0:02:59]} 4. Nxd4 {[%clk 0:03:00]}  e5 {[%clk 0:02:58]} 5. Nb5 {[%clk 0:02:59]}  d6 {[%clk 0:02:58]} 6. a4 {[%clk 0:02:58]}  Be6 {[%clk 0:02:56]} 7. N1c3 {[%clk 0:02:57]}  a6 {[%clk 0:02:56]} 8. Na3 {[%clk 0:02:57]}  Nf6 {[%clk 0:02:52]} 9. Bg5 {[%clk 0:02:55]}  Be7 {[%clk 0:02:49]} 10. Bxf6 {[%clk 0:02:53]}  Bxf6 {[%clk 0:02:49]} 11. Bc4 {[%clk 0:02:54]}  O-O {[%clk 0:02:47]} 12. O-O {[%clk 0:02:54]}  Nd4 {[%clk 0:02:44]} 13. Ne2 {[%clk 0:02:46]}  Rc8 {[%clk 0:02:43]} 14. Nxd4 {[%clk 0:02:34]}  exd4 {[%clk 0:02:34]} 15. Bd3 {[%clk 0:02:22]}  d5 {[%clk 0:02:18]} 16. e5 {[%clk 0:02:12]}  Bxe5 {[%clk 0:02:11]} 17. Qh5 {[%clk 0:02:08]}  f5 {[%clk 0:02:08]} 18. Rae1 {[%clk 0:02:04]}  Qd6 {[%clk 0:02:04]} 19. f4 {[%clk 0:01:22]}  Bxf4 {[%clk 0:01:53]} 20. Rxe6 {[%clk 0:00:41]}  Bxh2+ {[%clk 0:01:52]} 21. Qxh2 {[%clk 0:00:33]}  Qxe6 {[%clk 0:01:50]} 22. Qf4 {[%clk 0:00:23]}  Qe3+ {[%clk 0:01:37]} 23. Qxe3 {[%clk 0:00:16]}  dxe3 {[%clk 0:01:37]} 24. Nb1 {[%clk 0:00:15]}  f4 {[%clk 0:01:35]} 25. Rf3 {[%clk 0:00:13]}  g5 {[%clk 0:01:33]} 26. Rh3 {[%clk 0:00:09]}  e2 {[%clk 0:01:25]} 27. Kf2 {[%clk 0:00:07]}  Rfe8 {[%clk 0:01:22]} 28. Ke1 {[%clk 0:00:07]}  Rc7 {[%clk 0:01:12]} 29. Rh5 {[%clk 0:00:07]}  Rg7 {[%clk 0:01:09]} 30. Nd2 {[%clk 0:00:07]}  Re3 {[%clk 0:00:59]} 31. a5 {[%clk 0:00:06]}  Rg3 {[%clk 0:00:55]} 32. Rh2 {[%clk 0:00:06]}  g4 {[%clk 0:00:53]} 33. Kf2 {[%clk 0:00:05]}  f3 {[%clk 0:00:50]} 0-1


[Site "https://www.chess.com"]

[Event "Early Titled Tuesday Blitz | February 8 2022"]
[White "Matlakov, Maxim"]
[Black "Piesik, Piotr"]
[WhiteFideId "4168003"]
[BlackFideId "1136194"]
[WhiteElo "2661"]
[BlackElo "2232"]
[Result "1-0"]
[Round "04"]
[TimeControl "180+1"]
[Date "2022.02.08"]
[WhiteClock "0:02:05"]
[BlackClock "0:02:22"]

1. Nf3 {[%clk 0:03:00]}  g6 {[%clk 0:02:54]} 2. e4 {[%clk 0:03:00]}  Bg7 {[%clk 0:02:54]} 3. d4 {[%clk 0:03:00]}  c6 {[%clk 0:02:55]} 4. Nbd2 {[%clk 0:02:54]}  d6 {[%clk 0:02:54]} 5. Bd3 {[%clk 0:02:53]}  Nf6 {[%clk 0:02:54]} 6. c3 {[%clk 0:02:53]}  O-O {[%clk 0:02:54]} 7. O-O {[%clk 0:02:53]}  Nbd7 {[%clk 0:02:54]} 8. Re1 {[%clk 0:02:54]}  e5 {[%clk 0:02:55]} 9. h3 {[%clk 0:02:53]}  Qc7 {[%clk 0:02:54]} 10. Qc2 {[%clk 0:02:53]}  Re8 {[%clk 0:02:53]} 11. a4 {[%clk 0:02:53]}  b6 {[%clk 0:02:52]} 12. dxe5 {[%clk 0:02:44]}  dxe5 {[%clk 0:02:49]} 13. Bc4 {[%clk 0:02:45]}  Nc5 {[%clk 0:02:46]} 14. b4 {[%clk 0:02:41]}  Ne6 {[%clk 0:02:46]} 15. Nb3 {[%clk 0:02:34]}  Nf4 {[%clk 0:02:43]} 16. Ng5 {[%clk 0:02:19]}  Be6 {[%clk 0:02:40]} 17. Nxe6 {[%clk 0:02:17]}  Nxe6 {[%clk 0:02:41]} 18. Be3 {[%clk 0:02:16]}  Rad8 {[%clk 0:02:39]} 19. a5 {[%clk 0:02:14]}  b5 {[%clk 0:02:39]} 20. Bxe6 {[%clk 0:02:08]}  Rxe6 {[%clk 0:02:40]} 21. Nc5 {[%clk 0:02:07]}  Red6 {[%clk 0:02:39]} 22. a6 {[%clk 0:02:07]}  Ra8 {[%clk 0:02:29]} 23. Red1 {[%clk 0:02:06]}  Nd7 {[%clk 0:02:21]} 24. Rxd6 {[%clk 0:02:05]}  Qxd6 {[%clk 0:02:22]} 25. Rd1 {[%clk 0:02:05]} 1-0


[Site "https://www.chess.com"]

[Event "Early Titled Tuesday Blitz | February 8 2022"]
[White "Minina, Veronika"]
[Black "Pasini, Nicolo"]
[WhiteFideId "4174780"]
[BlackFideId "2809600"]
[WhiteElo "1850"]
[BlackElo "2065"]
[Result "1-0"]
[Round "04"]
[TimeControl "180+1"]
[Date "2022.02.08"]
[WhiteClock "0:00:08"]
[BlackClock "0:00:01"]

1. Nf3 {[%clk 0:03:00]}  g6 {[%clk 0:02:58]} 2. g3 {[%clk 0:02:58]}  Bg7 {[%clk 0:02:59]} 3. Bg2 {[%clk 0:02:56]}  e5 {[%clk 0:02:58]} 4. d3 {[%clk 0:02:56]}  Nc6 {[%clk 0:02:58]} 5. O-O {[%clk 0:02:55]}  d5 {[%clk 0:02:58]} 6. c4 {[%clk 0:02:54]}  Nge7 {[%clk 0:02:54]} 7. cxd5 {[%clk 0:02:51]}  Nxd5 {[%clk 0:02:53]} 8. Nc3 {[%clk 0:02:51]}  Nde7 {[%clk 0:02:53]} 9. Bd2 {[%clk 0:02:37]}  O-O {[%clk 0:02:51]} 10. a3 {[%clk 0:02:18]}  a5 {[%clk 0:02:11]} 11. Qa4 {[%clk 0:02:12]}  Bd7 {[%clk 0:01:45]} 12. Qb3 {[%clk 0:02:07]}  Qc8 {[%clk 0:01:32]} 13. Rfe1 {[%clk 0:01:40]}  Be6 {[%clk 0:01:29]} 14. Qc2 {[%clk 0:01:35]}  Nf5 {[%clk 0:01:26]} 15. Nb5 {[%clk 0:01:28]}  a4 {[%clk 0:01:23]} 16. Rac1 {[%clk 0:01:24]}  Bb3 {[%clk 0:01:22]} 17. Qc5 {[%clk 0:01:16]}  Re8 {[%clk 0:01:15]} 18. Bh3 {[%clk 0:01:12]}  Bf8 {[%clk 0:01:12]} 19. Qc3 {[%clk 0:01:08]}  Be6 {[%clk 0:00:48]} 20. Bg2 {[%clk 0:00:49]}  Bg7 {[%clk 0:00:46]} 21. Qc5 {[%clk 0:00:46]}  Qd7 {[%clk 0:00:37]} 22. Qc2 {[%clk 0:00:23]}  Bb3 {[%clk 0:00:34]} 23. Qb1 {[%clk 0:00:23]}  Ra6 {[%clk 0:00:28]} 24. Nc3 {[%clk 0:00:23]}  Rb6 {[%clk 0:00:20]} 25. Ne4 {[%clk 0:00:24]}  Nfd4 {[%clk 0:00:19]} 26. Nc5 {[%clk 0:00:23]}  Qc8 {[%clk 0:00:18]} 27. Nxd4 {[%clk 0:00:21]}  Nxd4 {[%clk 0:00:19]} 28. Bc3 {[%clk 0:00:20]}  Be6 {[%clk 0:00:12]} 29. Ne4 {[%clk 0:00:19]}  Nb3 {[%clk 0:00:10]} 30. Rcd1 {[%clk 0:00:17]}  Rc6 {[%clk 0:00:10]} 31. Bh1 {[%clk 0:00:15]}  Ra6 {[%clk 0:00:10]} 32. Nd2 {[%clk 0:00:15]}  c5 {[%clk 0:00:10]} 33. Nxb3 {[%clk 0:00:14]}  Bxb3 {[%clk 0:00:10]} 34. Rd2 {[%clk 0:00:15]}  b5 {[%clk 0:00:09]} 35. e3 {[%clk 0:00:15]}  Rd8 {[%clk 0:00:09]} 36. Qc1 {[%clk 0:00:13]}  Rad6 {[%clk 0:00:09]} 37. Qb1 {[%clk 0:00:12]}  Qc7 {[%clk 0:00:09]} 38. d4 {[%clk 0:00:12]}  Qb6 {[%clk 0:00:10]} 39. dxc5 {[%clk 0:00:12]}  Qxc5 {[%clk 0:00:09]} 40. Bb4 {[%clk 0:00:12]}  Rxd2 {[%clk 0:00:08]} 41. Bxc5 {[%clk 0:00:11]}  Rd1 {[%clk 0:00:09]} 42. Bb4 {[%clk 0:00:08]}  Rxb1 {[%clk 0:00:07]} 43. Rxb1 {[%clk 0:00:09]}  f5 {[%clk 0:00:04]} 44. Bc6 {[%clk 0:00:09]}  e4 {[%clk 0:00:05]} 45. Bxb5 {[%clk 0:00:09]}  Rd1+ {[%clk 0:00:04]} 46. Rxd1 {[%clk 0:00:08]}  Bxd1 {[%clk 0:00:05]} 47. Bc4+ {[%clk 0:00:09]}  Kh8 {[%clk 0:00:04]} 48. Kf1 {[%clk 0:00:09]}  Bxb2 {[%clk 0:00:04]} 49. Ke1 {[%clk 0:00:10]}  Bc2 {[%clk 0:00:04]} 50. Kd2 {[%clk 0:00:10]}  Bb3 {[%clk 0:00:03]} 51. Bb5 {[%clk 0:00:10]}  Bf6 {[%clk 0:00:02]} 52. Bc6 {[%clk 0:00:08]}  Kg7 {[%clk 0:00:03]} 53. h4 {[%clk 0:00:08]}  Kf7 {[%clk 0:00:02]} 54. Bc5 {[%clk 0:00:08]}  Bb2 {[%clk 0:00:01]} 55. Bb4 {[%clk 0:00:08]} 1-0


[Site "https://www.chess.com"]

[Event "Early Titled Tuesday Blitz | February 8 2022"]
[White "Mirzanurov, Bulat"]
[Black "Brunner, Nicolas"]
[WhiteFideId "4184521"]
[BlackFideId "620246"]
[WhiteElo "2116"]
[BlackElo "2372"]
[Result "0-1"]
[Round "04"]
[TimeControl "180+1"]
[Date "2022.02.08"]
[WhiteClock "0:00:03"]
[BlackClock "0:00:51"]

1. e4 {[%clk 0:03:00]}  e5 {[%clk 0:02:59]} 2. Nf3 {[%clk 0:03:00]}  Nc6 {[%clk 0:02:59]} 3. Bc4 {[%clk 0:02:59]}  Nf6 {[%clk 0:02:58]} 4. d3 {[%clk 0:02:58]}  Be7 {[%clk 0:02:56]} 5. O-O {[%clk 0:02:54]}  O-O {[%clk 0:02:56]} 6. Re1 {[%clk 0:02:54]}  d6 {[%clk 0:02:55]} 7. c3 {[%clk 0:02:52]}  Na5 {[%clk 0:02:54]} 8. Bb5 {[%clk 0:02:45]}  a6 {[%clk 0:02:54]} 9. Ba4 {[%clk 0:02:46]}  b5 {[%clk 0:02:54]} 10. Bc2 {[%clk 0:02:47]}  c5 {[%clk 0:02:54]} 11. Nbd2 {[%clk 0:02:41]}  Nc6 {[%clk 0:02:54]} 12. Nf1 {[%clk 0:02:39]}  Re8 {[%clk 0:02:55]} 13. Ng3 {[%clk 0:02:38]}  Bf8 {[%clk 0:02:55]} 14. h3 {[%clk 0:02:37]}  g6 {[%clk 0:02:55]} 15. Bg5 {[%clk 0:02:34]}  h6 {[%clk 0:02:52]} 16. Be3 {[%clk 0:02:30]}  d5 {[%clk 0:02:50]} 17. Qd2 {[%clk 0:02:19]}  Kh7 {[%clk 0:02:49]} 18. exd5 {[%clk 0:02:11]}  Nxd5 {[%clk 0:02:47]} 19. Ne4 {[%clk 0:02:11]}  Nxe3 {[%clk 0:02:44]} 20. Qxe3 {[%clk 0:02:10]}  Qe7 {[%clk 0:02:18]} 21. Qd2 {[%clk 0:01:55]}  f5 {[%clk 0:02:14]} 22. Ng3 {[%clk 0:01:52]}  Bg7 {[%clk 0:02:11]} 23. d4 {[%clk 0:01:41]}  cxd4 {[%clk 0:02:05]} 24. cxd4 {[%clk 0:01:29]}  e4 {[%clk 0:02:05]} 25. Nxe4 {[%clk 0:01:28]}  fxe4 {[%clk 0:02:03]} 26. Bxe4 {[%clk 0:01:29]}  Qd6 {[%clk 0:01:48]} 27. Rac1 {[%clk 0:01:17]}  Bb7 {[%clk 0:01:38]} 28. Qc2 {[%clk 0:00:48]}  Nb4 {[%clk 0:01:28]} 29. Qb1 {[%clk 0:00:28]}  Bxe4 {[%clk 0:01:28]} 30. Rxe4 {[%clk 0:00:27]}  Qd5 {[%clk 0:01:15]} 31. Rxe8 {[%clk 0:00:23]}  Rxe8 {[%clk 0:01:14]} 32. a3 {[%clk 0:00:24]}  Nc6 {[%clk 0:01:11]} 33. Rc5 {[%clk 0:00:15]}  Qd6 {[%clk 0:01:08]} 34. Qc1 {[%clk 0:00:13]}  Nxd4 {[%clk 0:01:06]} 35. Nxd4 {[%clk 0:00:13]}  Qxd4 {[%clk 0:01:05]} 36. Rc2 {[%clk 0:00:13]}  Rf8 {[%clk 0:01:02]} 37. Rd2 {[%clk 0:00:11]}  Qe5 {[%clk 0:01:01]} 38. Qf1 {[%clk 0:00:10]}  h5 {[%clk 0:01:00]} 39. Re2 {[%clk 0:00:10]}  Qd4 {[%clk 0:00:59]} 40. g3 {[%clk 0:00:07]}  Rf7 {[%clk 0:00:57]} 41. Kg2 {[%clk 0:00:07]}  Qd5+ {[%clk 0:00:55]} 42. Kg1 {[%clk 0:00:06]}  Bd4 {[%clk 0:00:54]} 43. h4 {[%clk 0:00:03]}  Qf3 {[%clk 0:00:53]} 44. Rd2 {[%clk 0:00:02]}  Qxg3+ {[%clk 0:00:53]} 45. Kh1 {[%clk 0:00:01]}  Qxh4+ {[%clk 0:00:52]} 46. Kg2 {[%clk 0:00:01]}  Qg4+ {[%clk 0:00:52]} 47. Kh2 {[%clk 0:00:02]}  Qf4+ {[%clk 0:00:51]} 48. Kg2 {[%clk 0:00:03]}  Qxd2 {[%clk 0:00:51]} 49. Kh2 {[%clk 0:00:04]}  Rxf2+ {[%clk 0:00:51]} 50. Kh3 {[%clk 0:00:05]}  Rxf1 {[%clk 0:00:50]} 51. Kh4 {[%clk 0:00:04]}  Qf4+ {[%clk 0:00:50]} 52. Kh3 {[%clk 0:00:04]}  Rf2 {[%clk 0:00:51]} 53. b4 {[%clk 0:00:03]}  Rh2# {[%clk 0:00:51]} 0-1


[Site "https://www.chess.com"]

[Event "Early Titled Tuesday Blitz | February 8 2022"]
[White "Mirzoev, Azer"]
[Black "Bettalli, Francesco"]
[WhiteFideId "13400304"]
[BlackFideId "2816453"]
[WhiteElo "2525"]
[BlackElo "2216"]
[Result "1-0"]
[Round "04"]
[TimeControl "180+1"]
[Date "2022.02.08"]
[WhiteClock "0:01:23"]
[BlackClock "0:01:01"]

1. c4 {[%clk 0:03:00]}  c5 {[%clk 0:02:59]} 2. Nc3 {[%clk 0:03:00]}  g6 {[%clk 0:02:59]} 3. g3 {[%clk 0:03:00]}  Bg7 {[%clk 0:03:00]} 4. Bg2 {[%clk 0:03:01]}  Nc6 {[%clk 0:03:00]} 5. a3 {[%clk 0:03:01]}  d6 {[%clk 0:03:00]} 6. Rb1 {[%clk 0:03:00]}  e6 {[%clk 0:03:01]} 7. b4 {[%clk 0:02:59]}  Nge7 {[%clk 0:03:01]} 8. bxc5 {[%clk 0:02:58]}  dxc5 {[%clk 0:03:02]} 9. Bb2 {[%clk 0:02:59]}  O-O {[%clk 0:03:02]} 10. h4 {[%clk 0:02:54]}  h6 {[%clk 0:02:59]} 11. Nf3 {[%clk 0:02:49]}  b6 {[%clk 0:02:58]} 12. d3 {[%clk 0:02:46]}  Bb7 {[%clk 0:02:59]} 13. Ne4 {[%clk 0:02:43]}  Nf5 {[%clk 0:02:56]} 14. Bxg7 {[%clk 0:02:41]}  Kxg7 {[%clk 0:02:57]} 15. Qc1 {[%clk 0:02:38]}  Qe7 {[%clk 0:02:37]} 16. Qb2+ {[%clk 0:02:37]}  e5 {[%clk 0:02:36]} 17. O-O {[%clk 0:02:35]}  Rad8 {[%clk 0:02:35]} 18. Nc3 {[%clk 0:02:34]}  Ncd4 {[%clk 0:02:35]} 19. Nd5 {[%clk 0:02:19]}  Bxd5 {[%clk 0:02:31]} 20. cxd5 {[%clk 0:02:18]}  Nxf3+ {[%clk 0:02:30]} 21. Bxf3 {[%clk 0:02:18]}  Nd4 {[%clk 0:02:30]} 22. Bg2 {[%clk 0:02:17]}  Qf6 {[%clk 0:02:26]} 23. Rfc1 {[%clk 0:02:11]}  g5 {[%clk 0:02:25]} 24. hxg5 {[%clk 0:02:09]}  hxg5 {[%clk 0:02:26]} 25. e3 {[%clk 0:02:10]}  Nf5 {[%clk 0:02:17]} 26. a4 {[%clk 0:02:06]}  Rh8 {[%clk 0:02:16]} 27. a5 {[%clk 0:02:04]}  Rh6 {[%clk 0:02:13]} 28. axb6 {[%clk 0:02:02]}  axb6 {[%clk 0:02:14]} 29. Ra1 {[%clk 0:01:59]}  g4 {[%clk 0:02:05]} 30. Ra6 {[%clk 0:01:53]}  Rdh8 {[%clk 0:01:42]} 31. Rxc5 {[%clk 0:01:52]}  Rh2 {[%clk 0:01:29]} 32. Qe2 {[%clk 0:01:36]}  Qg5 {[%clk 0:01:09]} 33. Rc4 {[%clk 0:01:36]}  Nh6 {[%clk 0:01:01]} 34. Kxh2 {[%clk 0:01:32]}  Qh5+ {[%clk 0:01:01]} 35. Kg1 {[%clk 0:01:32]}  f5 {[%clk 0:01:01]} 36. Ra7+ {[%clk 0:01:29]}  Nf7 {[%clk 0:01:01]} 37. Rcc7 {[%clk 0:01:23]} 1-0


[Site "https://www.chess.com"]

[Event "Early Titled Tuesday Blitz | February 8 2022"]
[White "Mohammad Fahad, Rahman"]
[Black "Buscar, Michael"]
[WhiteFideId "10207791"]
[BlackFideId "2603616"]
[WhiteElo "2323"]
[BlackElo "2010"]
[Result "1-0"]
[Round "04"]
[TimeControl "180+1"]
[Date "2022.02.08"]
[WhiteClock "0:02:09"]
[BlackClock "0:01:52"]

1. e4 {[%clk 0:03:00]}  e5 {[%clk 0:02:54]} 2. Nf3 {[%clk 0:02:59]}  Nf6 {[%clk 0:02:54]} 3. d4 {[%clk 0:02:58]}  Nxe4 {[%clk 0:02:52]} 4. Bd3 {[%clk 0:02:56]}  d5 {[%clk 0:02:52]} 5. Nxe5 {[%clk 0:02:52]}  Be7 {[%clk 0:02:45]} 6. O-O {[%clk 0:02:47]}  O-O {[%clk 0:02:44]} 7. Nc3 {[%clk 0:02:46]}  f5 {[%clk 0:02:30]} 8. Nxd5 {[%clk 0:02:42]}  Bd6 {[%clk 0:02:12]} 9. Nf4 {[%clk 0:02:35]}  Kh8 {[%clk 0:02:02]} 10. Nfg6+ {[%clk 0:02:08]}  hxg6 {[%clk 0:01:59]} 11. Nxg6+ {[%clk 0:02:08]}  Kg8 {[%clk 0:01:55]} 12. Bc4+ {[%clk 0:02:09]}  Rf7 {[%clk 0:01:52]} 13. Qh5 {[%clk 0:02:09]} 1-0


[Site "https://www.chess.com"]